[Event "CCC-GM 2022"]
[Site "Ballerup"]
[Date "2022.05.28"]
[Round "6.4"]
[White "Brunello, Sabino"]
[Black "Heimisson, Hilmir Freyr"]
[Result "1-0"]
[ECO "E47"]
[WhiteElo "2521"]
[BlackElo "2323"]
[Annotator "TA"]
[PlyCount "153"]
[EventDate "2022.05.25"]
[EventType "tourn"]
[EventCountry "DEN"]
[SourceTitle "playchess.com"]
[Source "ChessBase"]
[SourceQuality "1"]
[TimeControl "5400+30"]

{[%evp 22,153,20,0,0,-8,0,0,4,0,0,0,24,23,20,0,105,83,75,81,66,73,125,116,109,104,109,110,104,85,127,131,118,128,131,133,135,147,134,118,139,130,126,127,120,105,114,99,97,94,122,122,153,108,116,116,110,114,128,121,186,196,187,187,243,231,284,283,283,283,283,267,272,0,237,0,281,274,281,269,234,0,260,213,289,259,374,257,294,214,678,654,645,651,601,602,675,638,800,595,545,540,533,502,537,520,480,496,471,471,709,607,503,386,450,560,402,475,476,471,506,403,1727,1735,5293,2566,29982,29983,29984,29985,29985,29986,29987,29988]} 1. d4 {[%emt 0:00:16]} Nf6 {[%emt 0:02:13]} 2. c4 {[%emt 0:00:23]} e6 {[%emt 0:01:23]} 3. Nc3 {[%emt 0:00:06]} Bb4 {[%emt 0:00:09]} 4. e3 {[%emt 0:00:53]} O-O {[%emt 0:00:25]} 5. Bd3 {[%emt 0:00:26]} c5 {[%emt 0:00:21]} 6. Nge2 {[%emt 0:02:09]} d5 {[%emt 0:01:40]} 7. cxd5 {[%emt 0:06:00]} cxd4 {[%emt 0:01:44]} 8. exd4 {[%emt 0:01:26]} Nxd5 {[%emt 0:00:18]} 9. O-O {[%emt 0:00:11]} Nc6 {[%emt 0:01:41]} 10. a3 {[%emt 0:04:06]} Bd6 {[%emt 0:00:50] 10...Bd6 scores better than 10...Be7.} 11. Ne4 {[%emt 0:02:12] has lost popularity (11.Re1).} Be7 {[%emt 0:07:07]} 12. Bb1 {[%emt 0:03:06]} Nf6 {[%emt 0:02:41] [#] E48: Nimzo-Indian: Rubinstein: 5 Bd3 d5 including 6 Ne2, but excluding 6 a3.} 13. N4c3 $146 {[%emt 0:00:51]} ({Predecessor:} 13. Ng5 e5 14. d5 Qxd5 15. Bxh7+ Kh8 16. Bd3 Rd8 17. Bc2 Qxd1 18. Bxd1 Kg8 19. Bb3 Rf8 20. h3 {½-½ (76) Ilic,D (2420)-Radibratovic,P (2330) Kladovo 1990}) 13... b6 {[%emt 0:06:45]} 14. Qd3 {[%emt 0:03:13]} Bb7 {[%emt 0:00:55] The position is equal.} 15. Bg5 {[%emt 0:14:06]} g6 {[%emt 0:01:49]} 16. Ba2 $40 {[%emt 0:00:14][%mdl 128] White has some attack.} Nd5 {[%emt 0:10:08]} 17. Bh6 {[%emt 0:05:05]} Nxc3 {[%emt 0:07:11]} 18. Nxc3 {[%emt 0:07:44]} Re8 {[%emt 0:00:43]} (18... Nxd4 $11 19. Rad1 Bf6) 19. d5 {[%emt 0:09:05]} exd5 {[%emt 0:22:59]} 20. Qxd5 {[%emt 0:08:26]} (20. Rad1 {with more complications.} Ne5 21. Qg3 Bh4 22. Qf4) 20... Qxd5 {[%emt 0:12:19]} 21. Nxd5 {[%emt 0:00:08] Nc7 is the strong threat.} (21. Bxd5 Bf6 $11) 21... Red8 {[%emt 0:01:33]} ({Black should play} 21... Rac8) 22. Rfe1 {[%emt 0:09:25]} Bf8 {[%emt 0:00:15]} 23. Bg5 {[%emt 0:03:43]} Rd6 {[%emt 0:01:20]} 24. Rad1 {[%emt 0:10:41] White is much more active.} Kh8 {[%emt 0:04:35]} 25. Nc3 {[%emt 0:06:02][%cal Bd5c3,Bc3e4,Be4g5][%mdl 32]} Kg7 {[%emt 0:05:07]} 26. Ne4 $1 {[%emt 0:00:33]} Rxd1 {[%emt 0:05:23][%cal Rd1e1]} 27. Bf6+ {[%emt 0:00:01]} Kg8 {[%emt 0:00:45][%cal Rd1e1]} 28. Rxd1 {[%emt 0:00:00]} Be7 {[%emt 0:01:18] [#]} 29. Bxe7 {[%emt 0:02:26]} ({Don't play} 29. Rd7 $6 Rd8 30. Rxd8+ Bxd8 $14) 29... Nxe7 {[%emt 0:00:03]} 30. Ng5 {[%emt 0:00:08]} Rc8 {[%emt 0:01:11][%cal Ob7d5]} 31. h4 {[%emt 0:00:24]} ({Don't take} 31. Bxf7+ Kg7 $16) 31... Bc6 {[%emt 0:00:34] Against Rd7} 32. Nxf7 {[%emt 0:00:56]} Kg7 {[%emt 0:00:28]} 33. Ne5 {[%emt 0:00:31]} Be8 {[%emt 0:00:30]} 34. Rd2 {[%emt 0:00:26] Against Rc2} Nf5 {[%emt 0:00:13]} 35. g3 {[%emt 0:00:18]} Rc1+ {[%emt 0:00:31]} 36. Kg2 {[%emt 0:00:06]} Bb5 {[%emt 0:00:29]} 37. Bd5 {[%emt 0:01:03]} Kf6 {[%emt 0:00:34]} 38. Ng4+ {[%emt 0:00:25]} Ke7 {[%emt 0:00:01]} 39. Kf3 {[%emt 0:00:15]} Rc5 {[%emt 0:00:48][%cal Oc5d5]} 40. Kf4 {[%emt 0:01:50]} a5 {[%emt 0:00:46]} (40... Bc4 $16) 41. Ne3 $18 {[%emt 0:00:41]} Nxe3 {[%emt 0:00:40]} 42. fxe3 {[%emt 0:00:11][%mdl 4096] Endgame KRB-KRB} ({Resist} 42. Kxe3 $6 Be8 43. Kf4 Bd7 $16) 42... Bc6 {[%emt 0:00:30]} (42... Rc1 {is a better defense.} 43. e4 h6) 43. e4 {[%emt 0:00:17]} Rc1 {[%emt 0:00:26]} 44. Bxc6 {[%emt 0:00:41]} Rxc6 {[%emt 0:00:02] KR-KR} 45. Rd5 {[%emt 0:00:11]} Rf6+ {[%emt 0:00:56]} 46. Ke3 {[%emt 0:00:05]} Rc6 {[%emt 0:00:29]} 47. Kf4 {[%emt 0:00:16]} Rf6+ $1 {[%emt 0:00:12]} 48. Ke3 {[%emt 0:00:01]} Rc6 $1 {[%emt 0:00:02]} 49. Rb5 {[%emt 0:00:00]} Rd6 {[%emt 0:00:31]} 50. Kf4 {[%emt 0:00:00]} Rf6+ {[%emt 0:00:57]} 51. Ke3 {[%emt 0:00:00]} Rd6 {[%emt 0:00:06]} 52. g4 {[%emt 0:00:00][%cal Bg3g4,Bg4g5][%mdl 32]} Ke6 {[%emt 0:01:03]} 53. Kf4 {[%emt 0:00:13]} Rc6 {[%emt 0:00:41]} (53... h6 $142 54. a4 Rc6) 54. h5 {[%emt 0:01:28][%cal Bh4h5,Bh5h6][%mdl 32]} Kf6 {[%emt 0:00:33]} 55. g5+ {[%emt 0:01:32]} Ke6 $2 {[%emt 0:00:08]} (55... Kf7 56. h6 Ke6) 56. h6 {[%emt 0:00:24]} Ke7 {[%emt 0:00:38]} 57. Ke5 {[%emt 0:00:21]} Re6+ {[%emt 0:00:18]} 58. Kd4 {[%emt 0:00:37] Threatens to win with Re5.} Rd6+ {[%emt 0:00:17]} 59. Ke3 {[%emt 0:02:47]} Ke6 {[%emt 0:00:38]} 60. Kf4 {[%emt 0:00:43]} Rc6 {[%emt 0:00:43]} 61. Re5+ {[%emt 0:00:01]} Kd7 {[%emt 0:00:41]} 62. Rd5+ {[%emt 0:00:06]} Ke7 {[%emt 0:00:10]} 63. Ke5 {[%emt 0:00:17]} Re6+ {[%emt 0:00:42] [#]} 64. Kd4 $1 {[%emt 0:00:01] Hoping for Re5.} Rc6 {[%emt 0:00:07]} 65. a4 {[%emt 0:01:12]} Rc2 {[%emt 0:01:00]} (65... Rc1 $142 66. Rb5 Rc6) 66. Rb5 {[%emt 0:00:25]} Rc6 {[%emt 0:00:12]} 67. Rb3 {[%emt 0:01:14] Black must now prevent e5.} Rd6+ {[%emt 0:00:51]} 68. Ke3 {[%emt 0:00:22]} Re6 {[%emt 0:00:38]} 69. Rc3 {[%emt 0:00:34] aiming for Rc7+.} Kd7 {[%emt 0:00:19] Prevents Rc7+.} 70. Rc2 {[%emt 0:00:57]} Kd8 {[%emt 0:00:43]} 71. Kd4 {[%emt 0:00:22]} Kd7 {[%emt 0:00:14]} (71... Rd6+ $142 72. Ke5 Kd7) 72. e5 {[%emt 0:00:10][%cal Be4e5,Be5e6][%mdl 32]} Re8 {[%emt 0:00:39]} 73. Kd5 {[%emt 0:00:10][%cal Oe5e6] White wants to mate with e6+!} Rd8 {[%emt 0:00:31]} 74. e6+ {[%emt 0:00:14] White mates.} Ke7+ 75. Ke5 {[%emt 0:00:01]} Rd1 {[%emt 0:00:58]} 76. Rc7+ {[%emt 0:00:05]} Kf8 {[%emt 0:00:29]} 77. Rxh7 {[%emt 0:00:01] Weighted Error Value: White=0.28 (precise) /Black=0.23 (precise)} 1-0

[Event "CCC-GM 2022"]
[Site "Ballerup"]
[Date "2022.05.28"]
[Round "6.5"]
[White "Stefansson, Vignir Vatnar"]
[Black "Olsen, Filip Boe"]
[Result "1/2-1/2"]
[ECO "A13"]
[WhiteElo "2496"]
[BlackElo "2407"]
[Annotator "TA"]
[PlyCount "81"]
[EventDate "2022.05.25"]
[EventType "tourn"]
[EventCountry "DEN"]
[SourceTitle "playchess.com"]
[Source "ChessBase"]
[SourceQuality "1"]
[TimeControl "5400+30"]

{[%evp 10,81,26,18,13,4,0,3,14,5,25,24,18,10,16,17,15,17,24,12,29,18,40,33,38,48,41,38,39,37,67,69,68,30,33,33,43,35,67,63,64,0,0,0,66,72,68,72,84,62,91,84,86,84,91,90,84,0,92,0,0,0,0,0,0,0,0,0,0,0,0,0,0,0]} 1. c4 {[%emt 0:00:31]} e6 {[%emt 0:00:15]} 2. Nf3 {[%emt 0:00:42]} d5 {[%emt 0:00:10]} 3. g3 {[%emt 0:00:22]} Nf6 {[%emt 0:00:09]} 4. Bg2 {[%emt 0:00:08]} dxc4 {[%emt 0:00:36]} 5. Qa4+ {[%emt 0:00:50]} c6 {[%emt 0:00:53]} 6. Qxc4 {[%emt 0:00:08]} b5 {[%emt 0:00:14] A13: English Opening: 1...e6.} 7. Qb3 {[%emt 0:00:39]} Bb7 {[%emt 0:00:29]} 8. O-O {[%emt 0:00:09]} Nbd7 {[%emt 0:01:40]} 9. d4 {[%emt 0:00:09]} Be7 {[%emt 0:02:15] seems to push 9...a6 aside.} 10. a4 {[%emt 0:01:15]} a6 {[%emt 0:06:21]} 11. Rd1 {[%emt 0:01:57] [#]} Qc8 $146 {[%emt 0:22:50]} ({Predecessor:} 11... O-O 12. Bg5 Qc7 13. Nc3 b4 14. Ne4 a5 15. Rac1 Rac8 16. Bf4 Qb6 17. Nd6 Bxd6 18. Bxd6 {0-1 (39) Makhnyov,D (2362)-Wei,Y (2748) Ashkhabad 2017}) 12. Ne5 {[%emt 0:05:21]} Nxe5 {[%emt 0:01:28]} 13. dxe5 {[%emt 0:00:07]} Nd7 {[%emt 0:00:52]} 14. Nc3 {[%emt 0:00:17]} O-O {[%emt 0:08:58]} 15. Bf4 {[%emt 0:04:40]} Nc5 {[%emt 0:10:58]} 16. Qc2 {[%emt 0:00:11]} Nxa4 {[%emt 0:00:43]} 17. Nxa4 {[%emt 0:01:20]} bxa4 {[%emt 0:00:03]} 18. Be4 {[%emt 0:02:01]} h6 {[%emt 0:01:13]} 19. Qxa4 {[%emt 0:00:11]} Rd8 {[%emt 0:03:51]} 20. Rxd8+ {[%emt 0:01:13]} Qxd8 {[%emt 0:00:38]} 21. Bxc6 {[%emt 0:05:38] White is more active.} Qb6 {[%emt 0:01:13][%csl LRb2,LRc6]} 22. Bxb7 {[%emt 0:00:06]} Qxb7 {[%emt 0:00:07]} 23. b3 {[%emt 0:00:58]} Rb8 {[%emt 0:02:45]} 24. Qxa6 {[%emt 0:00:19]} Qxb3 {[%emt 0:00:28]} 25. Qc6 {[%emt 0:02:17]} (25. Qa7 $14 Rb7 26. Qe3) 25... Qb2 $11 {[%emt 0:09:41][%csl LRa1,LRe2]} 26. Ra8 {[%emt 0:00:11]} Qb1+ {[%emt 0:00:28]} ({Black should play} 26... Rxa8 $11 27. Qxa8+ Bf8) 27. Kg2 $14 {[%emt 0:00:19]} Rxa8 {[%emt 0:00:42]} 28. Qxa8+ $16 {[%emt 0:00:05][%mdl 4096] Endgame KQB-KQB} Kh7 {[%emt 0:00:16]} 29. h4 {[%emt 0:00:58][%cal Bh2h4,Bh4h5][%mdl 32]} Bc5 {[%emt 0:06:57]} 30. Qf3 {[%emt 0:00:19]} Kg8 {[%emt 0:01:36]} 31. h5 {[%emt 0:01:41]} Qb4 {[%emt 0:02:34]} 32. Qc6 {[%emt 0:03:40]} Kh7 {[%emt 0:01:33]} 33. Qf3 {[%emt 0:01:35]} (33. Kf3 {feels hotter.} Kg8 34. g4 Qb3+ 35. Kg2) 33... Kg8 $1 {[%emt 0:01:17]} 34. Bc1 {[%emt 0:02:31]} (34. Be3 $16) 34... Qd4 $11 {[%emt 0:01:20] The position is equal.} 35. Qf4 {[%emt 0:01:11]} Qd5+ {[%emt 0:01:11]} 36. e4 {[%emt 0:00:40]} Qd1 {[%emt 0:00:28]} 37. g4 {[%emt 0:00:46]} Bd4 {[%emt 0:04:14]} 38. Ba3 {[%emt 0:03:17]} Qa1 {[%emt 0:00:39]} 39. Bd6 {[%emt 0:00:10]} Qb2 {[%emt 0:00:15]} 40. Qg3 {[%emt 0:02:39]} Qe2 {[%emt 0:00:21]} 41. Qf3 {[%emt 0:00:37] Weighted Error Value: White=0.12 (very precise) /Black=0.09 (flawless)} 1/2-1/2

[Event "CCC-GM 2022"]
[Site "Ballerup"]
[Date "2022.05.28"]
[Round "7.1"]
[White "Olsen, Filip Boe"]
[Black "Brunello, Sabino"]
[Result "1/2-1/2"]
[ECO "D35"]
[WhiteElo "2407"]
[BlackElo "2521"]
[Annotator "TA"]
[PlyCount "60"]
[EventDate "2022.05.25"]
[EventType "tourn"]
[EventCountry "DEN"]
[SourceTitle "playchess.com"]
[Source "ChessBase"]
[SourceQuality "1"]
[TimeControl "5400+30"]

{[%evp 19,60,16,20,14,25,12,14,5,0,-13,-17,-11,0,-13,-11,-14,-12,-17,0,0,0,-11,-12,-22,-11,-12,-14,-22,-20,-21,-25,-32,-26,-39,-30,-42,-33,-66,-63,-66,-53,-63,-41]} 1. d4 {[%emt 0:00:03]} Nf6 {[%emt 0:11:35]} 2. c4 {[%emt 0:00:13]} e6 {[%emt 0:00:09]} 3. Nc3 {[%emt 0:00:08]} d5 {[%emt 0:00:22]} 4. cxd5 {[%emt 0:00:21]} exd5 {[%emt 0:00:06]} 5. Bg5 {[%emt 0:00:13]} c6 {[%emt 0:00:27]} 6. e3 {[%emt 0:00:09]} Nbd7 {[%emt 0:00:41]} 7. Bd3 {[%emt 0:01:35]} Be7 {[%emt 0:00:07]} 8. Qc2 {[%emt 0:00:53]} Nh5 {[%emt 0:01:43]} 9. Bxe7 {[%emt 0:00:17]} Qxe7 {[%emt 0:00:01]} 10. O-O-O {[%emt 0:02:42]} Nb6 {[%emt 0:01:09]} 11. h3 {[%emt 0:01:47] D36: Queen's Gambit Declined: Exchange Variation: Main line (5 Bg5 c6 6 Qc2).} Be6 {[%emt 0:02:53]} 12. Kb1 {[%emt 0:01:24]} (12. Bxh7 g6 13. Bxg6 fxg6 14. Qxg6+ Bf7 $17) 12... Nf6 {[%emt 0:05:05]} 13. Nf3 {[%emt 0:03:15][%cal Bg1f3,Bf3d2,Bd2b3,Bb3c5][%mdl 32] The position is equal.} O-O-O {[%emt 0:01:33]} 14. Na4 {[%emt 0:09:38]} Nxa4 {[%emt 0:02:26]} 15. Qxa4 {[%emt 0:00:02]} Kb8 {[%emt 0:00:04]} 16. Rc1 {[%emt 0:00:34]} Ne4 {[%emt 0:00:54] Prevents Rc3.} 17. Bxe4 {[%emt 0:03:47]} dxe4 {[%emt 0:00:01]} 18. Nd2 {[%emt 0:03:12] [#]} f5 $146 {[%emt 0:13:38]} ({Predecessor:} 18... Qg5 19. g4 h5 20. gxh5 Rxh5 21. Ka1 Qg2 22. Qa3 Bd5 {0-1 (67) Richardson,J (2282)-Bisby,D (2293) England 2017}) 19. g3 {[%emt 0:06:45]} g5 {[%emt 0:05:58]} 20. h4 {[%emt 0:01:43]} f4 {[%emt 0:02:44]} 21. Nb3 {[%emt 0:11:13]} fxe3 {[%emt 0:08:37]} 22. fxe3 {[%emt 0:00:01]} gxh4 {[%emt 0:00:07]} 23. gxh4 {[%emt 0:07:59]} Rhg8 {[%emt 0:12:03]} 24. Nc5 {[%emt 0:05:53]} Bd5 {[%emt 0:00:15]} 25. Rc3 {[%emt 0:04:03]} Qc7 {[%emt 0:13:44]} ({But not} 25... a6 26. Qb4 Ka7 {[#]} 27. Nxa6 $1 Qxb4 28. Nxb4 $14) 26. Ra3 {[%emt 0:06:59]} Qb6 {[%emt 0:00:09]} 27. Qc2 {[%emt 0:01:12] Inhibits Rg2.} Rg7 {[%emt 0:01:07] Black is slightly better.} 28. Qh2+ {[%emt 0:05:37]} ({Avoid the trap} 28. Nxe4 $2 Re7 29. Qh2+ Qc7 $19) 28... Qc7 {[%emt 0:01:23]} 29. Qxc7+ {[%emt 0:11:21]} Rxc7 {[%emt 0:00:44]} 30. Rg1 {[%emt 0:02:46]} Rf7 {[%emt 0:10:08] Weighted Error Value: White=0.07 (flawless) /Black=0.02 (flawless)} 1/2-1/2

[Event "CCC-GM 2022"]
[Site "Ballerup"]
[Date "2022.05.28"]
[Round "7.2"]
[White "Blomqvist, Erik"]
[Black "Nielsen, Viktor Haarmark"]
[Result "1/2-1/2"]
[ECO "A05"]
[WhiteElo "2523"]
[BlackElo "2323"]
[Annotator "TA"]
[PlyCount "115"]
[EventDate "2022.05.25"]
[EventType "tourn"]
[EventCountry "DEN"]
[SourceTitle "playchess.com"]
[Source "ChessBase"]
[SourceQuality "1"]
[TimeControl "5400+30"]

{[%evp 16,115,19,18,19,14,20,33,18,26,89,85,101,98,98,91,60,49,52,39,58,0,0,0,22,0,0,-4,0,-20,-29,-43,-46,-48,-41,-30,-42,-97,-91,-100,-60,-60,-60,-60,-60,-60,-60,-89,-89,-89,-47,-38,0,-96,-91,-134,-60,-60,-60,-60,-52,-52,-8,-60,-60,-60,-60,-60,-60,-61,-61,-62,-60,-60,-60,-67,-67,-75,-59,-59,-8,-63,-22,-22,-22,-22,-22,-22,-22,-22,-22,-22,-22,-22,-22,-22,0,-22,0,-22,0,-1437]} 1. Nf3 {[%emt 0:00:10]} Nf6 {[%emt 0:00:11]} 2. g3 {[%emt 0:00:10]} g6 {[%emt 0:00:04]} 3. b3 {[%emt 0:00:49]} Bg7 {[%emt 0:00:08]} 4. Bb2 {[%emt 0:00:05]} d5 {[%emt 0:00:19]} 5. c4 {[%emt 0:00:14]} c6 {[%emt 0:04:28]} 6. Bg2 {[%emt 0:00:17]} O-O {[%emt 0:00:14]} 7. O-O {[%emt 0:00:08]} Bg4 {[%emt 0:04:20]} 8. d3 {[%emt 0:01:23][%cal Bd2d3,Bd3d4][%mdl 32]} Bxf3 {[%emt 0:03:38]} 9. Bxf3 {[%emt 0:00:23]} Re8 {[%emt 0:00:17] A11: English Opening: 1...c6.} 10. d4 {[%emt 0:03:12]} dxc4 {[%emt 0:05:17]} 11. bxc4 {[%emt 0:01:08]} e5 {[%emt 0:00:02] White is slightly better.} 12. e3 {[%emt 0:02:08] [#]} e4 $146 {[%emt 0:07:45]} (12... exd4 $11 13. Bxd4 (13. Qxd4 Nbd7 $11) 13... Nbd7) ({Predecessor:} 12... exd4 13. exd4 Nbd7 14. Nc3 Qb6 15. Rb1 Qa6 16. Qb3 Nb6 17. c5 Nbd7 18. Rfd1 Rac8 {1-0 (36) Rozum,I (2581)-Drygalov,S (2400) Samara 2016}) 13. Bg2 $16 {[%emt 0:00:26]} c5 {[%emt 0:00:16]} 14. Nd2 {[%emt 0:09:07]} (14. dxc5 Na6 $14) 14... cxd4 {[%emt 0:20:32]} 15. Bxd4 {[%emt 0:03:54]} Nbd7 {[%emt 0:01:12][%cal Bb8d7,Bd7c5,Bc5e4][%mdl 32]} 16. c5 {[%emt 0:03:12]} Rc8 {[%emt 0:07:46]} 17. Rc1 {[%emt 0:04:43]} Bf8 {[%emt 0:02:17][%cal Rf8c5]} 18. f3 {[%emt 0:29:11]} (18. c6 $14 bxc6 19. Qa4) 18... Nxc5 {[%emt 0:09:36]} 19. fxe4 {[%emt 0:00:42]} Nfd7 {[%emt 0:00:57]} 20. Qf3 {[%emt 0:11:45][%csl Gf1][%cal Rf3f7] [#]} Qe7 {[%emt 0:01:06]} 21. e5 {[%emt 0:05:34]} b6 {[%emt 0:04:40]} 22. Bh3 {[%emt 0:08:32]} Bg7 {[%emt 0:04:11]} 23. Ne4 {[%emt 0:10:47]} Nxe4 {[%emt 0:01:04] Pair of Knights!} 24. Rxc8 {[%emt 0:00:14]} ({Much worse is} 24. Qxe4 Rxc1 25. Rxc1 Bxe5 26. Bxd7 Qxd7 27. Bxe5 Qb5 $17) 24... Rxc8 {[%emt 0:00:37]} 25. Qxe4 {[%emt 0:00:07] [#] Hoping for e6.} Re8 {[%emt 0:00:28][%cal Rd7e5]} 26. Bxd7 {[%emt 0:02:56]} (26. e6 $1 $15 f5 27. Qd3 Qxe6 28. Bxg7 Kxg7 29. e4) 26... Qxd7 $17 {[%emt 0:00:17]} 27. Rf2 {[%emt 0:01:50]} Qe7 {[%emt 0:03:29][%cal Rg7e5]} 28. Qd5 {[%emt 0:00:24]} h5 {[%emt 0:02:14]} 29. a4 {[%emt 0:00:47]} Qe6 {[%emt 0:01:22]} 30. Qb7 {[%emt 0:00:18]} Re7 {[%emt 0:00:37]} 31. Qa8+ {[%emt 0:00:49]} Kh7 {[%emt 0:00:07]} 32. Qb8 {[%emt 0:00:31]} Qc6 {[%emt 0:04:06]} 33. Qd8 {[%emt 0:00:31]} ({Don't play} 33. Qd6 Qe8 34. Qd5 Kg8 $17) 33... Qe6 {[%emt 0:03:31]} (33... Qb7 $15) 34. Qb8 $1 {[%emt 0:00:27]} Qd7 {[%emt 0:00:54]} 35. Ra2 {[%emt 0:00:34]} Re8 {[%emt 0:01:07]} (35... h4 $17 {White must now prevent ...Re8.} 36. Rf2 h3) 36. Qd6 $15 {[%emt 0:00:06]} Qxd6 {[%emt 0:00:25]} (36... Qc8 {is interesting.} 37. Rf2 Kg8 38. Qd5 Re6) 37. exd6 {[%emt 0:00:02]} Bxd4 {[%emt 0:00:08]} 38. exd4 {[%emt 0:00:02][%mdl 4096] Endgame KR-KR} Rd8 {[%emt 0:00:07]} 39. Rc2 {[%emt 0:00:29]} (39. Kf2 $1 $11) 39... Rxd6 {[%emt 0:00:40]} 40. Rc7 {[%emt 0:00:12]} Kg7 {[%emt 0:00:20]} ({Much weaker is} 40... Rxd4 41. Rxf7+ Kh6 42. Rxa7 $11) 41. Rxa7 {[%emt 0:00:30]} Rxd4 {[%emt 0:00:05]} 42. a5 {[%emt 0:00:32]} bxa5 {[%emt 0:00:06]} 43. Rxa5 {[%emt 0:00:02]} Rd2 {[%emt 0:00:06]} 44. h4 {[%emt 0:00:59]} Kf6 {[%emt 0:01:04]} 45. Rb5 {[%emt 0:00:21]} Ke6 {[%emt 0:00:29]} 46. Ra5 {[%emt 0:00:17]} Rd5 {[%emt 0:01:39]} 47. Ra2 {[%emt 0:00:33]} Kf5 {[%emt 0:01:16]} (47... Rd3 $15 48. Kf2 f6) 48. Kg2 {[%emt 0:00:47]} (48. Rf2+ $1 $11 Ke6 49. Kg2) 48... g5 {[%emt 0:01:11]} 49. hxg5 {[%emt 0:00:30] The position is equal.} Kxg5 {[%emt 0:00:07]} 50. Ra4 {[%emt 0:00:49]} Re5 {[%emt 0:00:34]} 51. Kf3 {[%emt 0:00:12]} Rf5+ {[%emt 0:01:07]} 52. Kg2 {[%emt 0:00:07]} Rb5 {[%emt 0:00:03]} 53. Kf3 $1 {[%emt 0:00:27]} Rb3+ {[%emt 0:00:06]} 54. Kg2 {[%emt 0:00:05]} Rb2+ {[%emt 0:00:30]} 55. Kf3 {[%emt 0:00:07]} Rb3+ {[%emt 0:00:03]} 56. Kg2 {[%emt 0:00:04]} Rb2+ {[%emt 0:00:05]} 57. Kf3 {[%emt 0:00:03]} Rb3+ 58. Ke4 $2 {[%mdl 40960] Weighted Error Value: White=0.10 (very precise) /Black=0.13 (very precise) . An unexpected result.} (58. Kg2 $11) 1/2-1/2

[Event "CCC-GM 2022"]
[Site "Ballerup"]
[Date "2022.05.28"]
[Round "7.3"]
[White "Hacker, Jonas"]
[Black "Stefansson, Vignir Vatnar"]
[Result "1/2-1/2"]
[ECO "C43"]
[WhiteElo "2396"]
[BlackElo "2496"]
[Annotator "TA"]
[PlyCount "61"]
[EventDate "2022.05.25"]
[EventType "tourn"]
[EventCountry "DEN"]
[SourceTitle "playchess.com"]
[Source "ChessBase"]
[SourceQuality "1"]
[TimeControl "5400+30"]

{[%evp 17,61,13,8,8,10,0,13,13,31,25,27,0,0,0,34,31,39,5,29,43,56,56,65,0,14,-32,-32,-39,-39,-47,-38,-38,-31,-33,-26,-26,-19,-19,0,0,0,-10,-10,-18,-18,-18]} 1. e4 {[%emt 0:00:09]} e5 {[%emt 0:00:08]} 2. Nf3 {[%emt 0:00:10]} Nf6 {[%emt 0:00:04]} 3. d4 {[%emt 0:00:39]} Nxe4 {[%emt 0:00:07]} 4. Bd3 {[%emt 0:01:02]} d5 {[%emt 0:00:06]} 5. Nxe5 {[%emt 0:00:33]} Nd7 {[%emt 0:00:05]} 6. Nxd7 {[%emt 0:06:19]} Bxd7 {[%emt 0:00:07]} 7. O-O {[%emt 0:00:23]} Bd6 {[%emt 0:00:16]} 8. Nc3 {[%emt 0:00:36]} Nxc3 {[%emt 0:01:17]} 9. bxc3 {[%emt 0:00:08]} O-O {[%emt 0:00:05]} 10. Qh5 {[%emt 0:01:39][%csl Gd3,LRd5,LRh7][%cal Rh5h7] [#] Inhibits Qh4. C43: Petroff Defence: 3 d4.} f5 $1 {[%emt 0:00:03]} 11. Re1 {[%emt 0:05:15]} Qf6 {[%emt 0:05:07]} 12. Qf3 {[%emt 0:06:56]} c6 {[%emt 0:01:07]} 13. Bf4 {[%emt 0:00:28]} Rae8 {[%emt 0:01:22]} 14. Qg3 {[%emt 0:09:56] is the legacy move (14.c4).} Bxf4 {[%emt 0:00:05]} 15. Qxf4 {[%emt 0:00:10]} Qf7 {[%emt 0:00:02] [#]} (15... c5 $5 {[%cal Rc5c4]}) 16. Kf1 $146 {[%emt 0:05:11]} ({Predecessor:} 16. g3 g6 17. h4 Rxe1+ 18. Rxe1 Re8 19. Re5 Rxe5 20. Qxe5 Qe8 21. Qc7 Qc8 22. Qd6 {½-½ (32) Kveinys,A (2520)-Giertz,N (2270) Marbach 1994}) 16... h6 {[%emt 0:02:02]} 17. Rxe8 {[%emt 0:02:43]} Rxe8 {[%emt 0:00:06]} 18. Re1 {[%emt 0:00:05]} Rxe1+ {[%emt 0:00:06]} 19. Kxe1 $14 {[%emt 0:00:07][%mdl 4096] Endgame KQB-KQB} Bc8 {[%emt 0:03:42]} 20. Qe5 {[%emt 0:04:23] White is more active.} (20. a4 $14) 20... Qe6 {[%emt 0:00:10]} 21. Qxe6+ {[%emt 0:00:39]} (21. Kd2 $11) 21... Bxe6 $11 {[%emt 0:00:06] KB-KB} 22. f4 {[%emt 0:00:14]} Kf7 {[%emt 0:00:48]} 23. Kd2 {[%emt 0:00:50]} Ke7 {[%emt 0:00:33]} 24. Kc1 {[%emt 0:02:39]} a5 {[%emt 0:02:02]} 25. g3 {[%emt 0:02:35]} b5 {[%emt 0:02:29]} 26. Kb2 {[%emt 0:03:48]} g5 {[%emt 0:00:38]} 27. h4 {[%emt 0:01:46] The position is equal.} gxf4 {[%emt 0:03:50]} 28. gxf4 {[%emt 0:00:03]} Kd6 {[%emt 0:00:11]} 29. a3 {[%emt 0:03:00]} Bd7 {[%emt 0:00:05]} 30. Kb3 {[%emt 0:01:20]} c5 {[%emt 0:00:19] [#] Strongly threatening ...c4+.} 31. Kb2 {[%emt 0:00:25] Weighted Error Value: White=0.12 (very precise) /Black=0.07 (flawless)} 1/2-1/2